bitfinex-derivatives/quotes_ETHF0:USTF0_20250403
["timestamp","ask_amount","ask_price","bid_price","bid_amount"]
[1743664847819,12.92323221,1808.3,1808.2,1.10627]
[1743664847820,16.13103221,1808.3,1808.2,1.10627]
[1743664848015,14.34823221,1808.3,1808.2,1.10627]
[1743664848424,1.425,1808.3,1808.2,1.10627]
[1743664851423,0.00829255,1808.5,1808.4,1.10614]
[1743664851726,0.00829255,1808.5,1808.4,66.43594]
[1743664852428,0.00829255,1808.5,1808.4,67.55964]
[1743664853626,0.00829255,1808.5,1808.4,70.05964]
[1743664855318,16.75533031,1809.3,1809.2,1.10565]
[1743664855522,16.75533031,1809.3,1809.2,5.13365]
[1743664856632,7.1116,1809.3,1809.1,0.00829255]
[1743664856822,1.10565,1809.2,1809.1,0.00829255]
[1743664857017,1.4038,1809.2,1809.1,1.11401255]
[1743664857223,1.4038,1809.2,1809.1,5.14101255]
[1743664858533,1.4038,1809.2,1809.1,5.14201255]
[1743664861532,4.6116,1809.2,1809.1,0.00829255]
[1743664861734,5.71725,1809.2,1809.1,0.00829255]
[1743664862233,4.6116,1809.2,1809.1,1.11401255]
[1743664862842,1.4038,1809.2,1809.1,1.11401255]
[1743664863344,1.4038,1809.2,1809.1,4.32181255]
[1743664865439,0.00829255,1809.4,1809.3,1.10559]
[1743664865639,1.46749255,1809.4,1809.3,5.11659]
[1743664866035,0.32132255,1809.4,1809.3,10.82439]
[1743664866240,12.74670894,1809.6,1809.5,1.10547]
[1743664866436,12.74670894,1809.6,1809.5,6.81327]
[1743664866844,0.8448,1809.9,1809.8,1.10529]
[1743664867037,12.74670894,1810.1,1810.0,1.10517]
[1743664867747,12.74670894,1810.1,1810.0,60.28437]
[1743664869343,1.41909255,1810.2,1810.1,1.10511]
[1743664869531,0.00829255,1810.2,1810.1,5.11011]
[1743664871645,0.00829255,1810.2,1810.1,7.61011]
[1743664871841,0.00829255,1810.2,1810.1,10.81791]
[1743664874656,2.55e-06,1810.2,1810.1,10.81791]
[1743664874944,0.8988,1810.7,1810.6,1.1048]
[1743664875149,0.8988,1810.7,1810.6,5.0798]
[1743664877948,0.8988,1810.7,1810.6,3.975]
[1743664878244,0.8988,1810.7,1810.6,5.0798]
[1743664878452,0.8988,1810.7,1810.6,3.975]
[1743664878644,0.8988,1810.7,1810.6,5.0798]
[1743664881647,4.50355,1810.7,1810.5,0.00829255]
[1743664881858,4.2631,1810.6,1810.5,0.00829255]
[1743664882652,4.2631,1810.6,1810.5,1.11315255]
[1743664883951,1.0553,1810.6,1810.5,1.11315255]
[1743664884651,0.8988,1810.7,1810.6,1.1048]
[1743664884849,0.8988,1810.7,1810.6,5.0738]
[1743664885551,2.3019,1810.7,1810.6,5.0738]
[1743664886455,2.3019,1810.7,1810.6,1.1048]
[1743664886751,2.3019,1810.7,1810.6,5.0668]
[1743664889150,1.4031,1810.7,1810.6,5.0668]
[1743664889456,1.4031,1810.7,1810.6,6.5338]
[1743664890855,0.00829255,1810.8,1810.7,1.10474]
[1743664891052,0.00829255,1810.8,1810.7,2.48604]
[1743664895160,0.00829255,1810.8,1810.7,5.69384]
[1743664896758,0.00829255,1810.8,1810.7,63.69584]
[1743664899464,3.2078,1811.4,1810.8,5.52327]
[1743664899763,2.5282,1811.3,1811.2,1.10443]
[1743664899957,2.5282,1811.3,1811.2,5.01243]
[1743664901162,1.4913,1811.3,1811.2,5.01243]
[1743664901465,0.0054735,1811.4,1811.2,5.01243]
[1743664901466,0.0054735,1811.4,1811.3,1.10437]
[1743664901665,12.74670894,1811.8,1811.5,1.10425]
[1743664901861,12.74670894,1811.8,1811.7,4.31193]
[1743664902167,14.22260894,1811.8,1811.7,4.31193]
[1743664902362,5.69570537,1811.8,1811.7,8.23803]
[1743664903161,4.59094537,1811.8,1811.7,8.23803]
[1743664903661,1.4759,1812.0,1811.9,1.10401]
[1743664903861,1.4759,1812.0,1811.9,5.01701]
[1743664904061,1.4759,1812.0,1811.9,8.22481]
[1743664904267,1.4759,1812.0,1811.9,9.65091]
[1743664904457,14.88198569,1812.6,1812.2,1.10382]
[1743664904664,14.88198569,1812.6,1812.2,5.01082]
[1743664905268,3.5307,1812.3,1812.0,5.01091]
[1743664905469,3.2078,1812.1,1812.0,5.01091]
[1743664905857,3.2078,1812.1,1812.0,3.907]
[1743664906057,3.2078,1812.1,1812.0,5.01095]
[1743664908474,1.4887,1812.2,1812.1,1.10389]
[1743664911173,1.4887,1812.2,1812.1,3.898]
[1743664911378,3.9887,1812.2,1812.1,3.898]
[1743664911764,1.4887,1812.2,1812.1,5.00189]
[1743664912477,1.4887,1812.2,1812.1,1.10389]
[1743664915274,1.4781,1812.5,1812.4,1.1037]
[1743664915467,1.4781,1812.5,1812.4,62.9707]
[1743664916974,3.2078,1812.7,1812.6,1.10358]
[1743664917170,4.7076,1812.7,1812.6,1.10358]
[1743664917675,1.4998,1812.7,1812.6,1.10358]
[1743664917872,4.2649,1813.0,1812.9,1.1034]
[1743664918173,4.2649,1813.0,1812.9,3.894]
[1743664918375,4.2649,1813.0,1812.9,4.9974]
[1743664919478,3.2078,1813.0,1812.9,4.9974]
[1743664919681,1.4998,1813.1,1813.0,1.10334]
[1743664919978,4.7076,1813.1,1813.0,1.10334]
[1743664920481,4.7076,1813.1,1812.9,4.99735]
[1743664920682,4.7076,1813.1,1813.0,1.10334]
[1743664920873,4.7076,1813.1,1812.9,3.894]
[1743664921180,4.7076,1813.1,1813.0,1.10334]
[1743664924187,1.4998,1813.1,1813.0,1.10334]
[1743664924880,1.4998,1813.1,1812.9,4.99735]
[1743664925086,3.2078,1813.0,1812.9,4.99735]
[1743664925282,4.31116,1813.0,1812.8,0.00829255]
[1743664925475,2.4404,1812.9,1812.8,4.99275255]
[1743664926480,2.4404,1812.9,1812.8,1.11175255]
[1743664926786,2.4404,1812.9,1812.8,4.99575255]
[1743664927193,3.5438,1812.9,1812.8,0.00829255]
[1743664927390,6.0438,1812.9,1812.8,0.00829255]
[1743664928288,4.9404,1812.9,1812.8,0.00829255]
[1743664928484,6.0438,1812.9,1812.8,0.00829255]
[1743664929896,3.5438,1812.9,1812.8,0.00829255]
[1743664930097,6.0438,1812.9,1812.8,0.00829255]
[1743664931198,4.9404,1812.9,1812.8,1.11175255]
[1743664931393,2.4404,1812.9,1812.8,1.11175255]
[1743664932399,2.4404,1812.9,1812.8,4.98175255]
[1743664932895,6.0438,1812.9,1812.8,0.00829255]
[1743664933891,6.0438,1812.9,1812.8,1.11175255]
[1743664934995,8.8204,1812.9,1811.8,5.52024]
[1743664935195,8.8204,1812.9,1812.0,1.10395]
[1743664935196,3.2078,1812.1,1812.0,1.10395]
[1743664935498,3.2078,1812.3,1812.0,2.75985]
[1743664935700,3.2078,1812.3,1812.0,1.3826]
[1743664935899,1.4669,1812.2,1812.1,1.10384]
[1743664936699,1.10389,1812.1,1812.0,0.00829255]
[1743664936893,4.31169,1812.1,1812.0,0.00829255]
[1743664937101,4.31169,1812.1,1812.0,1.11224255]
[1743664937398,3.2078,1812.1,1812.0,1.11224255]
[1743664937793,4.6747,1812.1,1812.0,1.11224255]
[1743664937999,4.6747,1812.1,1812.0,2.49484255]
[1743664938392,0.00829254,1812.3,1812.2,1.10382]
[1743664938393,3.21609254,1812.3,1812.2,1.10382]
[1743664938592,4.64619254,1812.3,1812.2,4.98282]
[1743664939702,5.74995254,1812.3,1812.2,3.879]
[1743664939996,1.10382,1812.2,1812.0,1.11222255]
[1743664940196,4.6379,1812.1,1812.0,1.11222255]
[1743664940494,4.6379,1812.1,1812.0,0.00829255]
[1743664941194,5.74179,1812.1,1812.0,0.00829255]
[1743664941595,8.24179,1812.1,1812.0,0.00829255]
[1743664941792,1.10401,1811.9,1811.8,57.941]
[1743664942088,4.31181,1811.9,1811.8,57.941]
[1743664942293,6.81181,1811.9,1811.8,57.941]
[1743664942500,8.20961,1811.9,1811.8,57.941]
[1743664942695,8.20961,1811.9,1811.4,3.876]
[1743664942696,1.10424,1811.6,1811.4,3.876]
[1743664942890,4.6056,1811.5,1811.4,3.876]
[1743664943106,4.6056,1811.5,1811.4,4.98031]
[1743664943399,4.6056,1811.5,1811.4,3.876]
[1743664943602,4.6056,1811.5,1811.4,4.98031]
[1743664943802,4.6056,1811.5,1811.4,3.876]
[1743664944202,4.6056,1811.5,1811.4,3.88977365]
[1743664944397,4.6056,1811.5,1811.4,4.99408365]
[1743664944604,4.6056,1811.5,1811.4,3.88977365]
[1743664944802,4.6056,1811.5,1811.4,4.99408365]
[1743664945194,4.6056,1811.5,1811.4,3.88977365]
[1743664948006,5.70985,1811.5,1811.4,0.01377365]
[1743664948806,4.6056,1811.5,1811.4,0.01377365]
[1743664949102,5.70985,1811.5,1811.4,0.01377365]
[1743664954005,4.6056,1811.5,1811.4,0.01377365]
[1743664954206,5.70985,1811.5,1811.4,0.01377365]
[1743664955007,4.6056,1811.5,1811.4,1.11808365]
[1743664955204,1.1272,1811.7,1811.4,1.46377365]
[1743664955205,3.2078,1811.7,1811.4,1.46377365]
[1743664955404,4.724,1811.7,1811.6,1.10419]
[1743664955704,4.724,1811.7,1811.4,1.11806365]
[1743664955705,5.82817,1811.7,1811.4,1.11806365]
[1743664955907,3.2078,1811.5,1811.4,4.96306365]
[1743664956099,3.2078,1811.5,1811.4,6.41306365]
[1743664956697,3.2078,1811.5,1811.4,5.30877365]
[1743664956905,3.2078,1811.5,1811.4,6.41308365]
[1743664957103,4.7066,1811.5,1811.4,6.41308365]
[1743664960005,1.4988,1811.5,1811.4,6.41308365]
[1743664960206,1.3788,1811.8,1811.7,1.10413]
[1743664960513,3.2078,1811.9,1811.8,1.10407]
[1743664960810,3.2078,1811.9,1811.8,2.61207]
[1743664961211,3.2078,1811.9,1811.8,2.62584365]
[1743664962002,3.2078,1811.9,1811.8,0.01377365]
[1743664962203,4.5866,1811.9,1811.8,1.11784365]
[1743664966309,4.2604,1812.2,1812.1,1.10389]
[1743664966615,5.6365,1812.2,1812.1,1.10389]
[1743664967314,5.6365,1812.2,1812.1,1.11766365]
[1743664967816,2.4287,1812.2,1812.1,1.11766365]
[1743664968015,4.5839,1812.2,1812.1,2.53276365]
[1743664968614,1.3761,1812.2,1812.1,2.53276365]
[1743664968818,0.00829254,1812.3,1812.2,1.10382]
[1743664969117,0.00829254,1812.3,1812.2,2.57482]
[1743664969318,0.00829254,1812.3,1812.2,2.58859365]
[1743664969918,0.00829254,1812.3,1812.2,0.01377365]
[1743664970116,1.39959254,1812.3,1812.2,0.01377365]
[1743664970918,1.39959254,1812.3,1812.2,1.11759365]
[1743664971623,1.39959254,1812.3,1812.2,0.01377365]
[1743664971824,1.39959254,1812.3,1812.2,1.11759365]
[1743664979226,1.39959254,1812.3,1812.2,0.01377365]
[1743664979430,2.50335254,1812.3,1812.2,0.01377365]
[1743664981129,5.00335254,1812.3,1812.2,0.01377365]
[1743664983428,1.10389,1812.1,1812.0,59.07491]
[1743664983729,4.31169,1812.1,1812.0,59.07491]
[1743664984126,5.79599,1812.1,1812.0,57.971]
[1743664984323,14.25999,1812.1,1812.0,57.971]
[1743664986036,11.75999,1812.1,1812.0,57.971]
[1743664986237,10.6561,1812.1,1812.0,59.07495]
[1743664986933,11.75999,1812.1,1812.0,59.07495]
[1743664987836,11.75999,1812.1,1812.0,57.971]
[1743664989345,10.6561,1812.1,1812.0,57.971]
[1743664989633,4.6921,1812.1,1812.0,59.07495]
[1743664989832,14.88198569,1812.2,1812.1,1.10389]
[1743664990034,14.88198569,1812.2,1812.1,9.54559]
[1743664990234,14.88198569,1812.2,1812.1,12.04559]
[1743664990832,14.88198569,1812.2,1812.1,8.83779]
[1743664991646,0.00829254,1812.3,1812.2,1.10382]
[1743664991947,0.00829254,1812.3,1812.2,2.54772]
[1743664992147,0.00829254,1812.3,1812.2,3.66172]
[1743664992944,3.21609254,1812.3,1812.2,3.66172]
[1743664994245,3.21609254,1812.3,1812.2,2.54772]
[1743664994437,0.00829254,1812.3,1812.2,2.54772]
[1743664995241,3.21609254,1812.3,1812.2,2.54772]
[1743664998851,18.08978569,1812.7,1812.6,1.10358]
[1743664999152,19.61318569,1812.7,1812.6,4.87558]
[1743664999750,19.61318569,1812.7,1812.6,6.29598]
[1743665001055,19.61318569,1812.7,1812.6,4.87558]
[1743665002153,4.7312,1812.7,1812.6,6.28038]
[1743665002354,0.00829255,1812.8,1812.7,1.10352]
[1743665002547,0.00829255,1812.8,1812.7,3.71582]
[1743665003656,1.42729255,1812.8,1812.7,1.10352]
[1743665003855,1.42729255,1812.8,1812.7,4.87352]
[1743665004250,0.00829255,1812.8,1812.7,4.87352]
[1743665004459,0.00829255,1812.8,1812.7,6.27832]
[1743665004852,0.00829255,1812.8,1812.7,8.77832]
[1743665005356,0.00829255,1812.8,1812.7,6.27832]
[1743665007757,4.7229,1813.1,1813.0,1.10334]
[1743665007954,3.2078,1813.1,1813.0,4.86634]
[1743665008357,3.2078,1813.1,1813.0,7.59684]
[1743665008651,14.88198569,1813.2,1813.1,1.10328]
[1743665008851,14.88198569,1813.2,1813.1,2.61798]
[1743665009655,14.88198569,1813.2,1813.1,5.11798]
[1743665009860,16.75533031,1813.4,1813.3,1.10315]
[1743665010062,16.75533031,1813.4,1813.3,4.86515]
[1743665010567,1.4038,1813.6,1813.5,1.10303]
[1743665011264,14.93324198,1813.7,1813.6,1.10297]
[1743665011458,14.93324198,1813.7,1813.6,4.86297]
[1743665011662,14.93324198,1813.7,1813.6,6.30157]
[1743665011855,14.93324198,1813.7,1813.6,7.55027]
[1743665012355,8.06376379,1813.7,1813.6,7.55027]
[1743665012761,8.06376379,1813.7,1813.6,10.05027]
[1743665012958,19.96313031,1813.9,1813.8,1.10285]
[1743665013153,19.96313031,1813.9,1813.8,59.03285]
[1743665013663,21.43023031,1813.9,1813.8,59.03285]
[1743665014062,4.6749,1813.9,1813.8,57.93]
[1743665014365,4.6749,1813.9,1813.8,59.03285]
[1743665014560,5.964,1814.5,1813.8,63.6378]
[1743665014765,11.4711,1814.6,1814.3,1.1025]
[1743665015062,11.4711,1814.6,1814.3,3.801]
[1743665015460,11.4711,1814.6,1814.4,1.10248]
[1743665015660,11.4711,1814.6,1814.3,3.801]
[1743665015857,1.4047,1814.5,1814.4,1.10244]
[1743665016264,27.6017466,1814.9,1814.4,1.10244]
[1743665016265,1.1419,1814.8,1814.7,1.1023]
[1743665016569,18.8497466,1814.9,1814.8,1.10224]
[1743665016962,1.1668,1815.0,1814.9,1.10218]
[1743665018772,4.3746,1815.0,1814.9,3.802]
[1743665019369,5.7897,1815.0,1814.9,4.90418]
[1743665019868,5.7897,1815.0,1814.9,3.802]
[1743665020666,5.7897,1815.0,1814.8,1.10223]
[1743665020862,8.2897,1815.0,1814.7,4.89927]
[1743665021066,3.2078,1814.8,1814.7,4.89927]
[1743665021568,4.7063,1814.8,1814.7,4.89927]
[1743665022567,4.7063,1814.8,1814.7,3.797]
[1743665022773,4.7063,1814.8,1814.7,4.8993]
[1743665023268,1.1023,1814.7,1814.6,57.92926925]
[1743665023464,1.4061,1814.7,1814.6,59.03161925]
[1743665023665,3.9061,1814.7,1814.6,59.03161925]
[1743665024068,5.0084,1814.7,1814.6,59.03161925]
[1743665024272,5.0084,1814.7,1814.6,57.92926925]
[1743665025272,10.9724,1814.7,1814.6,57.92926925]
[1743665025664,10.9724,1814.7,1814.6,0.00826925]
[1743665025860,1.10243,1814.5,1814.4,1.10248]
[1743665026066,6.81023,1814.5,1814.4,1.10248]
[1743665026578,8.27873,1814.5,1814.4,1.10248]
[1743665027474,7.1763,1814.5,1814.4,1.10248]
[1743665027771,8.27873,1814.5,1814.4,1.10248]
[1743665028277,7.1763,1814.5,1814.4,1.10248]
[1743665029077,5.77873,1814.5,1814.4,1.10248]
[1743665029269,6.98513,1814.5,1814.4,1.10248]
[1743665031473,1.10249,1814.4,1814.3,4.89880925]
[1743665031674,2.50849,1814.4,1814.3,4.89880925]
[1743665033971,2.50849,1814.4,1814.3,3.79626925]
[1743665034877,2.50849,1814.4,1814.3,4.89881925]
[1743665035078,1.406,1814.4,1814.3,4.89881925]
[1743665035875,2.50849,1814.4,1814.3,4.89881925]
[1743665036077,2.50849,1814.4,1814.3,3.79626925]
[1743665036276,2.50849,1814.4,1814.3,4.89881925]
[1743665037371,1.406,1814.4,1814.3,4.89881925]
[1743665038080,0.00819155,1814.6,1814.5,1.10243]
[1743665038773,0.00819155,1814.6,1814.5,2.49693]
[1743665039282,0.00819155,1814.6,1814.5,1.10243]
[1743665039585,1.46639155,1814.6,1814.5,1.10243]
[1743665040275,2.56878155,1814.6,1814.4,1.10245]
[1743665040478,4.4793,1814.5,1814.4,1.10245]
[1743665040669,5.9375,1814.5,1814.4,1.10245]
[1743665040870,1.10249,1814.4,1814.3,3.79626925]
[1743665041077,2.56069,1814.4,1814.3,3.79626925]
[1743665041975,2.56069,1814.4,1814.3,4.89881925]
[1743665042375,2.56069,1814.4,1814.3,3.79626925]
[1743665042569,8.52469,1814.4,1814.3,0.00826925]
[1743665042774,11.02469,1814.4,1814.3,0.00826925]
[1743665043873,5.964,1814.4,1814.3,1.11081925]
[1743665044078,3.2078,1814.5,1814.4,1.10249]
[1743665044470,5.69033,1814.5,1814.4,1.10249]
[1743665044672,4.5879,1814.5,1814.4,1.10249]
[1743665045079,4.5879,1814.5,1814.4,2.50779]
[1743665045379,3.2078,1814.5,1814.4,2.50779]
[1743665045882,0.00819155,1814.6,1814.4,2.50779]
[1743665045883,0.00819155,1814.6,1814.5,1.10243]
[1743665046178,4.31835155,1814.6,1814.4,1.10244]
[1743665046379,4.31835155,1814.6,1814.5,1.10243]
[1743665048579,1.10249,1814.4,1814.3,0.00826925]
[1743665048881,4.31029,1814.4,1814.3,0.00826925]
[1743665049279,5.73199,1814.4,1814.3,0.00826925]
[1743665049478,5.73199,1814.4,1814.3,1.11081925]
[1743665050885,5.73199,1814.4,1814.3,0.00826925]
[1743665054393,6.93369,1814.4,1814.3,0.00826925]
[1743665054785,9.43369,1814.4,1814.3,0.00826925]
[1743665058884,15.39769,1814.4,1814.3,0.00826925]
[1743665059291,1.10267,1814.1,1814.0,58.99273]
[1743665059589,4.31047,1814.1,1814.0,58.99273]
[1743665059785,4.31047,1814.1,1814.0,57.89]
[1743665059988,2.75689,1814.0,1813.6,1.10292]
[1743665060284,1.10303,1813.5,1813.4,60.19478]
[1743665060686,1.10303,1813.5,1813.4,57.895]
[1743665060884,1.10303,1813.5,1813.4,60.39889]
[1743665061084,0.00826925,1813.6,1813.5,1.10303]
[1743665061284,0.00826925,1813.6,1813.5,2.50383]
[1743665061491,1.11123925,1813.6,1813.5,2.50383]
[1743665061692,0.00826925,1813.6,1813.5,2.50383]
[1743665061986,1.11123925,1813.6,1813.5,1.4008]
[1743665062290,5.74503925,1813.6,1813.5,2.50383]
[1743665062685,3.21606925,1813.6,1813.5,2.50383]
[1743665062885,0.00826925,1813.6,1813.5,2.50383]
[1743665064389,1.11123925,1813.6,1813.5,1.4008]
[1743665064591,0.00826925,1813.6,1813.5,1.4008]
[1743665064790,1.11123925,1813.6,1813.5,1.4008]
[1743665065091,0.00826925,1813.6,1813.5,1.4008]
[1743665065492,1.11123925,1813.6,1813.5,1.4008]
[1743665065691,4.31903925,1813.6,1813.5,1.4008]
[1743665066494,1.10303,1813.5,1813.4,57.895]
[1743665066795,3.21606925,1813.6,1813.4,57.895]
[1743665067097,0.00826925,1813.6,1813.5,1.10303]
[1743665067393,0.00826925,1813.6,1813.5,2.49203]
[1743665067591,0.00826925,1813.6,1813.5,3.73173]
[1743665068187,3.2078,1814.0,1813.5,7.47953]
[1743665068385,7.2193,1814.1,1813.9,1.10279]
[1743665068595,5.964,1814.1,1814.0,1.389]
[1743665068787,7.06667,1814.1,1814.0,1.389]
[1743665068986,8.49687,1814.1,1813.9,4.84478]
[1743665069183,5.74073,1814.0,1813.9,3.742]
[1743665069593,4.638,1814.0,1813.9,4.84479]
[1743665071192,5.74073,1814.0,1813.9,4.84479]
[1743665071393,5.74073,1814.0,1813.9,1.10279]
[1743665072592,1.10279,1813.9,1813.8,2.48592]
[1743665072891,3.79233,1813.9,1813.8,1.10285]
[1743665073700,2.6895,1813.9,1813.8,1.10285]
[1743665074297,3.79229,1813.9,1813.8,1.10285]
[1743665074593,2.6895,1813.9,1813.8,1.10285]
[1743665074894,1.10285,1813.8,1813.7,1.10286]
[1743665075094,5.80515,1813.8,1813.7,1.10286]
[1743665075294,4.7023,1813.8,1813.7,1.10286]
[1743665077100,5.80515,1813.8,1813.7,1.10286]
[1743665077589,1.10291,1813.7,1813.5,1.2478]
[1743665077789,4.31077,1813.6,1813.5,1.10301]
[1743665077992,1.10303,1813.5,1813.4,57.895]
[1743665078195,2.61033,1813.5,1813.4,57.895]
[1743665079095,2.61033,1813.5,1813.4,58.99809]
[1743665080197,1.5073,1813.5,1813.4,58.99809]
[1743665080894,2.61033,1813.5,1813.4,58.99809]
[1743665082200,1.5073,1813.5,1813.4,58.99809]
[1743665082499,4.4847,1813.6,1813.5,1.10303]
[1743665082799,7.03007,1813.6,1813.5,2.53003]
[1743665083500,3.2078,1813.6,1813.5,2.53003]
[1743665083700,4.31077,1813.6,1813.5,2.6459]
[1743665084094,4.31077,1813.6,1813.5,3.74893]
[1743665084797,2.54536,1813.7,1813.6,1.10297]
[1743665085004,11.55929,1813.8,1813.7,1.10291]
[1743665085203,1.10291,1813.7,1813.6,2.59243]
[1743665085606,1.10291,1813.7,1813.6,1.4895]
[1743665085809,2.51411,1813.7,1813.6,1.4895]
[1743665086708,2.51411,1813.7,1813.6,2.59247]
[1743665087005,1.10303,1813.5,1813.4,62.71806]
[1743665087205,1.10303,1813.5,1813.4,64.16286]
[1743665088004,5.79512,1813.6,1813.5,1.10303]
[1743665088205,4.31082,1813.6,1813.5,2.54783]
[1743665088602,3.2078,1813.6,1813.5,2.54783]
[1743665089013,3.2078,1813.6,1813.5,5.04783]
[1743665089409,5.964,1813.8,1813.7,1.10291]
[1743665089713,5.964,1813.8,1813.7,4.82291]
[1743665090208,5.964,1813.8,1813.7,6.20541]
[1743665091701,0.00819155,1814.2,1814.1,1.10267]
[1743665091903,1.10267,1814.1,1814.0,3.72]
[1743665092208,3.2078,1814.1,1814.0,6.20523]
[1743665092407,2.76509155,1814.2,1814.1,1.10267]
[1743665092606,2.76509155,1814.2,1814.1,2.48517]
[1743665092910,3.86770155,1814.2,1814.1,1.3825]
[1743665093312,2.76509155,1814.2,1814.1,2.48517]
[1743665094814,0.00819155,1814.2,1814.1,2.48517]
[1743665095915,1.51679155,1814.2,1814.1,2.48517]
[1743665099520,4.72459155,1814.2,1814.1,2.48517]
[1743665100816,0.00819155,1814.2,1814.1,5.69297]
[1743665102219,0.00819155,1814.2,1814.1,8.19297]
[1743665103519,5.68519,1814.9,1814.7,1.10225]
[1743665103817,3.2078,1814.9,1814.8,4.82124]
[1743665104618,20.94416288,1815.1,1815.0,1.10212]
[1743665104823,5.964,1815.3,1814.8,10.52904]
[1743665104824,7.3392,1815.3,1814.9,1.4199]
[1743665105012,1.3752,1815.2,1814.9,1.4199]
[1743665105211,4.583,1815.2,1815.1,1.10206]
[1743665105520,4.583,1815.2,1815.1,4.82006]
[1743665106410,5.02771435,1815.2,1815.1,4.82006]
[1743665106818,0.44471435,1815.2,1815.1,6.25626]
[1743665107320,5.964,1815.3,1815.2,1.102]
[1743665107626,1.4108,1815.4,1815.3,1.10194]
[1743665107819,1.2085,1815.5,1815.4,1.10188]
[1743665108121,2.6193,1815.5,1815.4,4.81988]
[1743665108511,1.3764,1815.9,1815.8,1.10164]
[1743665108717,1.2632,1816.0,1815.9,1.10158]
[1743665108918,22.32056288,1816.1,1816.0,1.10151]
[1743665110025,20.94416288,1816.1,1816.0,4.30931]
[1743665110320,20.94416288,1816.1,1816.0,1.10151]
[1743665110523,20.94416288,1816.1,1815.9,1.10154]
[1743665110723,1.3764,1816.0,1815.9,3.717]
[1743665111218,20.94416288,1816.1,1816.0,1.10151]
[1743665111726,20.94416288,1816.1,1816.0,7.02321]
[1743665112224,7.3607,1816.2,1816.1,1.10145]
[1743665112415,1.3967,1816.2,1816.1,1.10145]
[1743665114526,1.10145,1816.1,1816.0,2.7139]
[1743665114726,2.49814,1816.2,1816.0,6.4299]
[1743665115122,1.3967,1816.2,1816.0,7.5314]
[1743665115318,2.4981,1816.2,1816.0,6.4299]
[1743665115518,1.3967,1816.2,1816.1,1.10145]
[1743665115722,2.49813,1816.2,1816.0,3.716]
[1743665116022,2.49813,1816.2,1816.0,4.8175]
[1743665116218,1.10147,1816.1,1815.7,1.31976925]
[1743665116527,4.5929,1816.0,1815.9,1.10158]
[1743665116821,4.5929,1816.0,1815.9,2.62588]
[1743665118122,3.2078,1816.0,1815.9,2.62588]
[1743665118621,1.421,1816.2,1816.1,1.10145]
[1743665118827,1.421,1816.2,1816.1,4.81645]
[1743665120324,2.52239,1816.2,1816.1,3.715]
[1743665122029,1.10153,1816.0,1815.7,1.31976925]
[1743665122329,3.2078,1816.0,1815.9,1.10158]
[1743665122624,1.2296,1816.1,1816.0,1.10151]
[1743665123423,2.33105,1816.1,1816.0,1.10151]
[1743665124227,1.2296,1816.1,1815.9,1.10153]
[1743665124424,3.2078,1816.0,1815.9,1.10153]
[1743665125935,1.2296,1816.1,1816.0,1.10151]
[1743665126733,1.67925474,1816.1,1816.0,1.10151]
[1743665128222,1.67925474,1816.1,1815.9,1.10155]
[1743665128534,1.67925474,1816.1,1816.0,1.10151]
[1743665129029,0.44965474,1816.1,1816.0,6.80931]
[1743665129329,3.2078,1816.6,1816.0,6.80931]
[1743665129330,5.7455,1816.6,1816.4,1.10126]
[1743665129537,5.7455,1816.6,1816.5,4.81521]
[1743665130036,2.5377,1816.6,1816.5,4.81521]
[1743665130330,1.2898,1816.6,1816.5,4.81521]
[1743665130635,9.1718,1816.8,1816.7,1.10109]
[1743665130825,2.5377,1816.9,1816.8,1.10103]
[1743665131026,2.5377,1816.9,1816.8,4.81503]
[1743665131229,1.2898,1816.9,1816.8,4.81503]
[1743665131431,3.2078,1817.1,1817.0,1.10091]
[1743665133238,3.2078,1817.1,1817.0,3.60091]
[1743665133435,4.5013,1817.5,1817.4,1.10067]
[1743665133636,1.2935,1817.5,1817.4,4.81467]
[1743665134040,5.964,1818.0,1817.6,1.10055]
[1743665134337,4.30821,1817.9,1817.7,3.714]
[1743665134536,1.2935,1817.8,1817.7,4.81448]
[1743665134838,1.2935,1817.8,1817.7,3.714]
[1743665135230,1.2935,1817.8,1817.7,4.81448]
[1743665135735,2.8127,1817.8,1817.7,4.81448]
[1743665136137,1.5192,1817.8,1817.7,4.81448]
[1743665136333,9.1718,1818.1,1817.7,9.4218]
[1743665136639,10.691,1818.1,1818.0,1.1003]
[1743665136835,4.727,1818.1,1818.0,4.8133]
[1743665137527,1.5192,1818.1,1818.0,4.8133]
[1743665137728,3.2078,1818.5,1818.0,8.96376]
[1743665137934,5.82702,1818.5,1818.1,62.4131]
[1743665138136,3.2078,1818.3,1818.1,57.816]
[1743665138337,1.5192,1818.2,1818.1,57.816]
[1743665138534,1.5192,1818.2,1818.1,61.4162]
[1743665138728,7.3426,1818.6,1818.4,1.10001]
[1743665138932,3.2078,1818.5,1818.2,1.3946]
[1743665139130,2.47868,1818.4,1818.3,3.729]
[1743665139735,1.10012,1818.3,1818.1,58.9162]
[1743665139935,1.3786,1818.2,1818.1,58.9162]
[1743665140245,1.3786,1818.2,1818.1,62.6462]
[1743665140735,2.47878,1818.2,1818.1,61.546]
[1743665141033,1.3786,1818.2,1818.1,61.546]
[1743665141239,1.3786,1818.2,1818.1,62.64624]
[1743665141432,3.2078,1818.3,1818.2,1.10018]
[1743665141633,3.2078,1818.3,1818.1,61.546]
[1743665141841,2.56518,1818.2,1818.1,57.816]
[1743665142035,3.83708,1818.2,1818.1,61.543]
[1743665142242,1.10036,1817.9,1817.8,57.791]
[1743665142540,4.30815,1818.0,1817.8,61.521]
[1743665142732,1.465,1817.9,1817.8,62.62142]
[1743665143629,1.465,1817.9,1817.8,61.521]
[1743665143835,2.56536,1817.9,1817.8,61.521]
[1743665144141,1.465,1817.9,1817.8,61.521]